Cogmind - Beta 16 @@@ ROGUE MODE // 2025.11.18 @ 11:04:40 // Winter2019/RPGLIKE Player: Jaegerpls Result: Destroyed by GC-VL3(R) with Subdweller Laser Performance ------------- Evolutions (0) 0 Regions Visited (2) 400 Robots Destroyed (40) 200 Value Destroyed (869) 869 Prototype IDs (2) 40 Alien Tech Used (0) 0 Bonus (0) 0 TOTAL SCORE: 1509 Bonus ------- None Cogmind --------- Core Integrity 0/600 Matter 266/300 Energy 265/265 System Corruption 0% Temperature Cool (6) Movement Treading (160) Location -10/Subcaves Parts ------- > --- POWER (1) -------- Reinforced Ion Engine > --- PROPULSION (2) --- Light Treads Light Treads > --- UTILITY (3) ------ Improved Terrain Scanner Tractor Beam > --- WEAPON (2) ------- Battle Cannon Battle Cannon > --- INVENTORY (1) ---- (None) Peak State ------------ > --- POWER ------------ Light Ion Engine > --- PROPULSION ------- Wheel Wheel > --- UTILITY ---------- Improved Terrain Scanner Medium Armor Plating Medium Armor Plating > --- WEAPON ----------- Improved Light Cannon Improved Light Cannon > --- INVENTORY -------- (None) [Rating: 14] Favorites ----------- Power Reinforced Ion Engine Engine Reinforced Ion Engine Propulsion Light Treads Treads Light Treads Wheel Wheel Utility Medium Armor Plating Device Improved Terrain Scanner Processor Signal Interpreter Protection Medium Armor Plating Weapon Improved Light Cannon Energy Gun Small Laser Ballistic Gun Light Assault Rifle Ballistic Cannon Improved Light Cannon Build | -11 -10 -10 ------- Run | Yrd Mat Sub Slots Evolved 4 | 4 . . Power . | . . . Propulsion 1 | 1 . . Utility 2 | 2 . . Weapon 1 | 1 . . Parts Attached 20 | 8 11 1 Power 2 | 1 1 . Engine 2 | 1 1 . Core . | . . . Reactor . | . . . Propulsion 5 | 3 2 . Treads 2 | . 2 . Leg . | . . . Wheel 3 | 3 . . Hover . | . . . Flight . | . . . Utility 6 | 1 5 . Device 2 | 1 1 . Storage . | . . . Processor 1 | . 1 . Hackware . | . . . Protection 3 | . 3 . Artifact . | . . . Weapon 7 | 3 3 1 Energy Gun 2 | 2 . . Energy Cannon . | . . . Ballistic Gun 1 | 1 . . Ballistic Cannon 4 | . 3 1 Launcher . | . . . Special Weapon . | . . . Impact Weapon . | . . . Slashing Weapon . | . . . Piercing Weapon . | . . . Special Melee Weapon . | . . . Unidentified Prototypes . | . . . Parts Lost 1 | . . 1 Power . | . . . Propulsion . | . . . Utility 1 | . . 1 Weapon . | . . . Highest Loss Streak 1 | . . 1 To Critical Strikes . | . . . Average Backups . | . . . Power . | . . . Propulsion . | . . . Utility . | . . . Weapon . | . . . Tool/Special . | . . . Unused Backups . | . . . Power . | . . . Propulsion . | . . . Utility . | . . . Weapon . | . . . Tool/Special . | . . . Average Slot Usage (%) 97 | . 97 99 Engine 12 | . 12 12 Treads 18 | . 15 25 Wheel 6 | . 9 . Device 17 | . 14 25 Processor 4 | . 5 . Protection 13 | . 13 11 Energy Gun 1 | . 2 . Ballistic Cannon 23 | . 22 25 Peak Build Rating 14 | 8 14 14 Average Rating 13 | 4 13 13 On Entrance 7 | . 8 14 Avg Prop Armor Cover (%) . | . . . Naked Turns . | . . . Heaviest Build 27 | 7 27 26 Greatest Support 40 | 20 40 40 Greatest Overweight (x) 1 | 1 1 . Average Overweight (x) . | . . . Largest Inventory Capacity 1 | 1 1 1 Average Capacity 1 | 1 1 1 Most Carried 1 | 1 1 1 Average Carried . | . . . Final Capacity 1 | 1 1 1 Final Carried 1 | 1 . . Class Distribution -------------------- 100% | Mutant Dominant Class ---------------- Mutant | -10/Materials Mutant | -10/Subcaves Resources | -11 -10 -10 ----------- Run | Yrd Mat Sub Matter Collected 1191 | 283 779 129 Remotely 378 | . 249 129 Salvage Created 1190 | 196 921 73 Parts 53 | 9 40 4 Haulers Intercepted 2 | . 2 . Recyclers Shooed 2 | . 2 . Parts Field Recycled . | . . . Retrieved Matter . | . . . Parts Self-Destructed . | . . . Prevented . | . . . Parts Restored . | . . . Kills | -11 -10 -10 ------- Run | Yrd Mat Sub Combat Hostiles Destroyed 20 | . 16 4 Guns 2 | . 2 . Cannons 18 | . 14 4 Classes Destroyed 9 | 2 7 . Builder 2 | . 2 . Tunneler 4 | 4 . . Hauler 2 | . 2 . Recycler 8 | 1 7 . Mechanic 1 | . 1 . Watcher 3 | . 3 . Swarmer 4 | . 4 . Grunt 9 | . 9 . Subdweller 7 | . 3 4 Best Kill Streak 4 | 2 4 1 Combat Bots Only 3 | . 3 1 Max Kills in Single Turn 2 | 1 2 1 Gunslinging . | . . . Exploded . | . . . Melee . | . . . Uniques/NPCs Destroyed . | . . . Combat | -11 -10 -10 -------- Run | Yrd Mat Sub Hostile Shots Fired 134 | . 103 31 Missed 40 | . 30 10 Hits 94 | . 73 21 Projectile 94 | . 73 21 Critical Strikes 1 | . 1 . Damage Taken 1347 | . 878 469 Core 916 | . 573 343 Absorbed by Shields . | . . . Redirected to Core 763 | . 483 280 Core Remaining (%) 100 | 100 . . Volleys Fired 121 | 12 93 16 Largest 2 | 2 2 2 Hottest 90 | 90 90 66 Shots Fired 242 | 24 186 32 Gun 46 | 24 22 . Cannon 196 | . 164 32 Launcher . | . . . Special . | . . . Kinetic 199 | 3 164 32 Thermal 43 | 21 22 . Explosive . | . . . Electromagnetic . | . . . Robot Hit Streak 16 | 5 10 16 Robot Miss Streak 3 | 2 3 3 Penetration Max . | . . . Secondary Targets . | . . . Shots Hit Robots 143 | 14 104 25 Core Hits 50 | 6 37 7 Critical Kills . | . . . Critical Parts Destroyed . | . . . Critical Strikes 7 | 1 5 1 Burn 3 | 1 2 . Blast 4 | . 3 1 Melee Attacks . | . . . Impact . | . . . Slashing . | . . . Piercing . | . . . Sneak Attacks . | . . . Combat Hostiles . | . . . Follow-up Attacks . | . . . Damage Inflicted 2892 | 179 2209 504 Guns 344 | 179 165 . Cannons 2548 | . 2044 504 Explosions . | . . . Melee . | . . . Ramming . | . . . Kinetic 2565 | 17 2044 504 Thermal 327 | 162 165 . Explosive . | . . . Electromagnetic . | . . . Impact . | . . . Slashing . | . . . Piercing . | . . . Highest Corruption . | . . . Average Corruption . | . . . Corruption Purged . | . . . Corruption Blocked . | . . . Overload Shots . | . . . Overflow Damage 72 | . 72 . Projectiles 72 | . 72 . Explosions . | . . . Melee . | . . . Knockbacks 33 | . 25 8 Impact . | . . . Kinetic 32 | . 24 8 Secondary 1 | . 1 . Self-Inflicted Damage . | . . . Shots . | . . . Rammed . | . . . Targets Rammed . | . . . Kicked . | . . . Crushed . | . . . Highest Temperature 33 | . 33 . Average Temperature 11 | . 11 . Received Heat Transfer 432 | . 327 105 Siege Activations . | . . . Martial Activations . | . . . Shielding Activations . | . . . Robots Disrupted . | . . . Combat Hostiles . | . . . Robots Corrupted . | . . . Combat Hostiles . | . . . Parts Fried . | . . . Impact Corruptions . | . . . Robots Melted . | . . . Combat Hostiles . | . . . Parts Melted 3 | 1 2 . Heat Transferred 1102 | 508 594 . Parts Sabotaged . | . . . Parts Stolen . | . . . Parts Stripped . | . . . Power Chain Reactions . | . . . Alert | -11 -10 -10 ------- Run | Yrd Mat Sub Maximum Alert Level . | . . . Low Security (%) 100 | 100 100 . Level 1 . | . . . Level 2 . | . . . Level 3 . | . . . Level 4 . | . . . Level 5 . | . . . High Security . | . . . Max Security . | . . . Peak Influence 104 | 5 104 . Initial . | . . . Average 22 | 1 24 . Influence Increases 533 | 25 508 . Destroy 0b10 Robot/C 260 | . 260 . Destroy 0b10 Robot/NC 100 | 25 75 . Destroy Leader 70 | . 70 . Successful Hack 15 | . 15 . Disable Machine 60 | . 60 . Destroy Structure 13 | . 13 . Lose Combat Pursuer 15 | . 15 . Influence Decreases 533 | 25 407 101 Entered New Map 49 | . . 49 Time Decay 484 | 25 407 52 Squads Dispatched 1 | . 1 . Investigation . | . . . Extermination . | . . . Reinforcement 1 | . 1 . Assault . | . . . Garrison . | . . . Intercept . | . . . Searches Triggered . | . . . Construction Impeded . | . . . Haulers Reinforced . | . . . Active Scanning Responses . | . . . Cargo Convoy Interrupts . | . . . Stealth | -11 -10 -10 --------- Run | Yrd Mat Sub Distress Signals 2 | . 2 . Communications Jammed . | . . . Distress Signals . | . . . Times Spotted 36 | . 30 6 Peak Tracking Total 6 | . 6 3 Tactical Retreats 1 | . 1 . Traps | -11 -10 -10 ------- Run | Yrd Mat Sub Traps Triggered 1 | . 1 . Indirectly . | . . . Trap Hack Attempts . | . . . Triggered . | . . . Disarmed . | . . . Reprogrammed . | . . . Reused . | . . . Traps Extracted . | . . . Installed . | . . . Triggered . | . . . Machines | -11 -10 -10 ---------- Run | Yrd Mat Sub Machines Disabled 4 | . 4 . Max in Single Turn 1 | . 1 . Machines Repaired . | . . . Machines Dismantled . | . . . Machines Sabotaged . | . . . Overloaded Fab Kills . | . . . Hacking | -11 -10 -10 --------- Run | Yrd Mat Sub Machines Accessed 8 | . 8 . Terminals 6 | . 6 . Fabricators . | . . . Repair Stations . | . . . Recycling Units 2 | . 2 . Scanalyzers . | . . . Garrison Access . | . . . Total Hacks 21 | . 21 . Successful 12 | . 12 . Failed 9 | . 9 . Catastrophic 2 | . 2 . Database Lockouts . | . . . Manual 16 | . 16 . Terminals 17 | . 17 . Fabricators . | . . . Repair Stations . | . . . Recycling Units 4 | . 4 . Scanalyzers . | . . . Garrison Access . | . . . Terminal Hacks 1 | . 1 . Prototype ID Bank 1 | . 1 . Fabricator Hacks . | . . . Repair Station Hacks . | . . . Recycling Unit Hacks 2 | . 2 . Report Inventory 2 | . 2 . Scanalyzer . | . . . Garrison Access Hacks . | . . . Unauthorized Hacks 9 | . 9 . Terminals 7 | . 7 . Botnet 2 | . 2 . Skim 5 | . 5 . Fabricators . | . . . Repair Stations . | . . . Recycling Units 2 | . 2 . Reject 2 | . 2 . Scanalyzers . | . . . Garrison Access . | . . . Data Cores Recovered . | . . . Used . | . . . Hacking Detections 6 | . 6 . Full Trace Events . | . . . Feedback Events . | . . . Feedback Blocked . | . . . Robot Schematics Acquired . | . . . Robots Built . | . . . Authchips . | . . . Time . | . . . Total Robot Build Rating . | . . . Part Schematics Acquired . | . . . Parts Built . | . . . Authchips . | . . . Time . | . . . Total Part Build Rating . | . . . Part Studies Acquired . | . . . Parts Repaired . | . . . Time . | . . . Parts Recycled . | . . . Recycled Matter . | . . . Retrieved Matter . | . . . Retrieved Components . | . . . Parts Scanalyzed . | . . . Part Schematics Acquired . | . . . Parts Damaged . | . . . Bothacking | -11 -10 -10 ------------ Run | Yrd Mat Sub Used RIF Installer . | . . . Robots Hacked . | . . . Non-combat . | . . . Combat . | . . . Robot Hacks Applied . | . . . Relay Couplers Released . | . . . Fabnet Peak Effective % . | . . . Robots Rewired . | . . . Allies Hacked . | . . . Hacks Repelled . | . . . Allies | -11 -10 -10 -------- Run | Yrd Mat Sub Total Allies . | . . . Largest Group . | . . . Highest-Rated Group . | . . . Highest-Rated Ally . | . . . Total Orders . | . . . Ally Attacks . | . . . Total Damage . | . . . Kills . | . . . Allies Corrupted . | . . . Allies Melted . | . . . Intel | -11 -10 -10 ------- Run | Yrd Mat Sub Active Infowar (turns) 2399 | 16 1759 624 Terrain 2399 | 16 1759 624 Robot Analysis Total . | . . . Derelict Logs Recovered . | . . . Drone Launches . | . . . Drone Recoveries . | . . . Exploration | -11 -10 -10 ------------- Run | Yrd Mat Sub Turns Passed 2499 | 116 1759 624 Spaces Moved 1231 | 66 1012 153 Core 20 | 20 . . Treads 716 | . 563 153 Legs . | . . . Wheels 495 | 46 449 . Hover . | . . . Flight . | . . . Fastest Speed 50 | 50 80 160 Average Speed 129 | 80 128 160 Slowest Speed 160 | 100 160 160 Overloaded Moves . | . . . Propulsion Burnouts . | . . . Robots Hopped . | . . . Potential Cave-ins . | . . . Cave-ins Triggered . | . . . Exploration Rate (%) 38 | 4 99 13 Regions Visited 2 Branch Regions 1 Pre-discovered Areas . | . . . Known Exits Taken . | . . . Unknown Exits Taken 2 | 1 1 . Scrap Searched 3 | . . 3 Spaces Dug . | . . . Terrain Destroyed 8 | . 7 1 Melee . | . . . Projectile 8 | . 7 1 AOE . | . . . Terrain Rammed . | . . . Walls Destroyed . | . . . Machines Disabled . | . . . Actions | -11 -10 -10 --------- Run | Yrd Mat Sub Total 1891 | 102 1288 501 Wait 489 | 14 146 329 Move 1229 | 65 1011 153 Hop . | . . . Pick Up . | . . . Fast Attach 17 | 8 8 1 Attach . | . . . Detach 6 | 2 3 1 Swap 3 | . 3 . Drop 11 | 1 9 1 Fire 121 | 12 93 16 Melee . | . . . Ram . | . . . Kick . | . . . Crush . | . . . Escape Stasis . | . . . Rewire . | . . . Trap . | . . . Miscellaneous 15 | . 15 . Route ------- -11/Scrapyard -10/Materials (discovered 5 exits: [*Mat x3] / [*Min] / [*Sub]) -10/Subcaves (discovered 3 exits: Mat x2 / Rec) History --------- Turn | Location | Event 1 | -11/Scrapyard | Upgraded with Propulsion slot (x1) 1 | -11/Scrapyard | Upgraded with Utility slot (x2) 1 | -11/Scrapyard | Upgraded with Weapon slot (x1) 13 | -11/Scrapyard | Discovered new exit (range 16) 117 | -11/Scrapyard | Entered Materials 146 | -10/Materials | Discovered new exit (range 15) 303 | -10/Materials | Build established: Mutant 418 | -10/Materials | Discovered new exit (range 16) 595 | -10/Materials | Discovered new exit (range 13) 682 | -10/Materials | Discovered new exit (range 14) 760 | -10/Materials | Discovered new exit (range 16) 1224 | -10/Materials | Learned location of 2 exits from Subcaves 1246 | -10/Materials | Learned 2 Storage zone layouts 1256 | -10/Materials | Loaded intel: 7 terminal locations 1617 | -10/Materials | Derelicts attacked the area 1678 | -10/Materials | Core integrity fell below 50% 1816 | -10/Materials | Reached level 2 1876 | -10/Materials | Entered Subcaves 1877 | -10/Subcaves | Approached by a straggling Scientist 1877 | -10/Subcaves | Identified exit to Materials 1877 | -10/Subcaves | Identified exit to Recycling 2000 | -10/Subcaves | Disturbed a concealed Subdweller 2477 | -10/Subcaves | A Subdweller sparked back to life 2477 | -10/Subcaves | A Subdweller sparked back to life 2477 | -10/Subcaves | A Subdweller sparked back to life 2486 | -10/Subcaves | Core integrity fell below 20% 2500 | -10/Subcaves | Destroyed by GC-VL3(R) with Subdweller Laser Last Messages --------------- 02236_ Subatomizers dissect the Sub. Laser, destroying it. 14-YGY(c): "I think it's somewhere east of here" 02316_ G5-1CM(O) collects matter. 02322_ G5-1CM(O) puts together Hvy. Riot Gun. 14-YGY(c): "I think it's somewhere east of here" 02407_ Subatomizers dissect the Sub. Monowheel. 14-YGY(c): "I think it's somewhere east of here" 02477_ VG-1C5(R) creaks and sparks as it begins to move. 02477_ GC-VL3(R) creaks and sparks as it begins to move. 02477_ DG-C13(R) creaks and sparks as it begins to move. 02478_ Acquired 4 matter. 02479_ Med. Armor Plating destroyed. 02485_ VG-1C5(R) knocked back. 02486_ Acquired 1 matter. 14-YGY(c): "We're getting close, I can feel it." 02489_ Acquired 4 matter. 02491_ DG-C13(R) destroyed. 02495_ Acquired 9 matter. 02495_ GC-VL3(R) knocked back. 02496_ Acquired 3 matter. Map ----- +----------------------------------------------------+ | ?????????????????????????????????????????????????? | | ?????????????????????????????????????????????????? | | ?????????????????????????????????????????????????? | | ?????????????????????????????????????????????????? | | ?????????????????????????????????????????????????? | | ?????????????????????????????????????????????????? | | ?????????????????????????????????????????????????? | | ?????????????????????????????????????????????????? | | ?????????????????????????????????????????????????? | | ?????????????????????????#?#?##??????????????????? | | #????????????????#??######?#??###????????????????? | | ##????????????????#########?######???????????????? | | ####????????#??#####?#####?##??#??#??????????????? | | ######?#?####?#??###?##?#?#######?##?????????????? | | ###########??#?##########?##?###?###?????????????? | | #######?####?#?############?#####?#?##?#?????????? | | ##########?#?####?###?#?##?##???#?##????#????????? | | ###########?#######?####?###???####??#??????????? | | "#########################??#?#?######??##???????? | | ################?########?#?####?#?####?##???????? | | ###############################?#???#???##???????? | | #################?#############?#?######?????????? | | ######## ##### ##### # ####?####? ?#?#??#???????? | | ####### ### ###### ? #??#?##???????? | | ####### #### ;####?? ??????? | | #### ###@ % ##? ???????? | | #### ##### R < ####?????????? | | ##### #### % < <## #?##????????? | | #### ## #?# #? ?#? ????????? | | ### ### < ?????????? | | ## #### " & ?#??#????????? | | & ### ##### ## # "" ###??????????? | | &!## ######### ###### ###???????????? | | ## ######### ###?######?#??????????? | | ## ## #################?###??#?????????? | | ### # #######?######?#?#?##?????????????? | | ### ### ######??####?#?######?#??????????? | | #### #### ##################?##?????????????? | | ###### #### ##########?#?####?##?#????????????? | | %#### ### #########??##?##?#???????????????? | | %]#### ##### #########?##?##?#????????????????? | | #*### ##### #####?##???#??????????????????????? | | %"&[ ##### ######????????????????????????????? | | ## % ##### ?###????????????????????????????? | | "# #### #?##????????????????????????????? | | ## ######?????????????????????????????? | | ######?????????????????????????????? | | # ### ####?##????????????????????????????? | | ### ### ##??##????????????????????????????? | | #### ### #?#?????????????????????????????? | +----------------------------------------------------+ Best States ------------- Heat Dissipation 37 Energy Generation 12 Energy Capacity 265 Matter Stores 300 Matter Capacity 300 Sight Range 16 Robot Scan Range 2 Terrain Scan Range 16 Terrain Scan Density 310 Armor Coverage 450 Evasion (%) 50 Recoil Reduction 2 Item Schematics ----------------- None Robot Schematics ------------------ None Fabricated ------------ Nothing Repaired ---------- Nothing Studied --------- None Alien Tech Used ----------------- None Achievements -------------- None Challenges ------------ None RPGLIKE | -11 -10 -10 --------- Run | Yrd Mat Sub Levels Raised 1 | . 1 . XP Earned 5900 | 3000 1900 1000 XP Spent 2990 | 2990 . . Upgrades 11 | 11 . . Propulsion Slot 1 | 1 . . Utility Slot 2 | 2 . . Weapon Slot 1 | 1 . . Heat Dissipation 2 | 2 . . Inventory Capacity 1 | 1 . . Sensor Range 1 | 1 . . Terrain Scan Density 3 | 3 . . Protomatter Created 140 | . 123 17 Integrity Restored 303 | . 303 . Core 303 | . 303 . Protomatter Decayed 10 | . 10 . Game ------ Seed GyrokineticRiotActivator Manual? 0 Play Time 00:28:47 Cumulative 79.0 hours Start 2025.11.18 @ 10:45:55 End 2025.11.18 @ 11:04:40 Sessions 1 Manual Loads 0 Difficulty Rogue Special Mode Winter2019/RPGLIKE Game No. 72 Rogue 72 Adventurer 0 Explorer 0 Win Type - Total 0 Types 0/0/0/0/0/0/0/0/0/0 Lore% 58 Gallery% 38 Achievement% 36 Wizard Run 0 Options --------- Layout 0 ASCII 0 Keyboard 0 Movement Mouse Keybinds 0 Fullscreen 2 Font 24/Smallcaps Map View 76x50 Zoom Use 0% Tactical HUD 1 Map Filters NONE Filters NONE Steam 1 RUN: 401413fa-de78-4d34-bb98-7c3a0f75ed6e